bitfinex-derivatives/quotes_SOLF0:USTF0_20250516
["timestamp","ask_amount","ask_price","bid_price","bid_amount"]
[1747434189956,62.9,167.82,167.74,1.8725]
[1747434190152,62.88,167.82,167.78,5.9579]
[1747434190753,62.88,167.82,167.79,5.9578]
[1747434190952,62.88,167.82,167.76,62.54]
[1747434191544,62.54,167.85,167.76,62.54]
[1747434191746,62.82,167.84,167.76,62.54]
[1747434192062,5.9555,167.86,167.76,62.54]
[1747434192349,62.78,167.85,167.76,62.54]
[1747434192948,62.78,167.85,167.81,5.9569]
[1747434193452,5.9554,167.86,167.81,5.9569]
[1747434193653,68.6954,167.86,167.81,5.9569]
[1747434194455,5.9554,167.86,167.81,5.9569]
[1747434194756,62.7,167.85,167.81,5.9569]
[1747434195054,62.7,167.85,167.76,62.54]
[1747434195459,62.7,167.85,167.81,5.9569]
[1747434195658,3.7333,167.89,167.8,62.52]
[1747434195854,62.64,167.9,167.81,62.52]
[1747434196064,62.76,167.91,167.88,5.9544]
[1747434196451,62.76,167.91,167.83,1.9127]
[1747434196852,68.7137,167.91,167.83,1.9127]
[1747434197046,68.7137,167.91,167.85,5.9556]
[1747434197254,62.76,167.91,167.83,1.9127]
[1747434197558,62.76,167.93,167.9,5.9539]
[1747434197760,1.8786,167.95,167.9,5.9539]
[1747434198055,62.76,167.94,167.86,62.78]
[1747434198446,62.78,167.94,167.86,62.78]
[1747434198654,62.78,167.94,167.91,5.9536]
[1747434198957,62.78,167.94,167.86,62.78]
[1747434199348,62.78,167.94,167.88,5.9544]
[1747434199554,68.7326,167.94,167.88,5.9544]
[1747434199756,68.7326,167.94,167.86,62.78]
[1747434199757,62.78,167.94,167.9,5.9536]
[1747434200057,62.78,167.94,167.86,62.78]
[1747434200255,62.82,167.94,167.86,62.78]
[1747434200656,62.82,167.94,167.91,5.9536]
[1747434200855,62.78,167.95,167.86,62.78]
[1747434201264,5.9528,167.94,167.89,5.954]
[1747434201463,68.7128,167.94,167.86,62.78]
[1747434201757,62.76,167.94,167.91,5.9533]
[1747434201957,62.76,167.94,167.86,62.78]
[1747434202765,68.7126,167.94,167.89,5.9541]
[1747434203160,68.7126,167.94,167.86,62.78]
[1747434203361,5.9531,167.93,167.89,5.9542]
[1747434203763,62.76,167.94,167.86,62.78]
[1747434203951,62.76,167.94,167.91,5.9536]
[1747434204155,62.76,167.94,167.86,62.78]
[1747434204362,62.76,167.94,167.92,5.9532]
[1747434204857,62.7,167.95,167.93,5.9527]
[1747434205666,62.7,167.95,167.87,2.0269]
[1747434206864,5.9526,167.94,167.9,5.9537]
[1747434207065,62.7,167.95,167.86,62.78]
[1747434207854,6.38182119,167.94,167.86,62.78]
[1747434208062,5.9538,167.91,167.88,5.9544]
[1747434208262,68.5738,167.91,167.88,5.9544]
[1747434209861,62.62,167.91,167.86,62.78]
[1747434210466,62.62,167.91,167.9,5.9539]
[1747434210667,131.2127,167.94,167.86,62.78]
[1747434210869,62.52,167.94,167.86,62.78]
[1747434211664,62.52,167.94,167.91,5.9536]
[1747434211867,62.52,167.94,167.86,62.78]
[1747434212063,62.52,167.94,167.86,125.28]
[1747434212263,62.52,167.94,167.9,5.9537]
[1747434212465,62.52,167.94,167.86,125.28]
[1747434212772,62.48,167.95,167.86,125.28]
[1747434213562,5.9528,167.94,167.89,5.954]
[1747434213758,62.48,167.95,167.86,125.28]
[1747434213969,5.9533,167.92,167.88,5.9544]
[1747434214169,62.48,167.95,167.86,62.78]
[1747434214470,5.9534,167.92,167.88,5.9545]
[1747434215270,5.9534,167.92,167.89,5.9542]
[1747434216975,62.48,167.95,167.86,62.78]
[1747434217371,5.9531,167.93,167.9,5.9538]
[1747434218172,10.21415429,167.92,167.78,62.72]
[1747434218371,62.38,167.91,167.79,1.9879]
[1747434218564,5.9542,167.9,167.86,5.9552]
[1747434219071,125.1,167.91,167.86,5.9552]
[1747434219972,5.9544,167.89,167.86,5.9552]
[1747434220467,5.9544,167.89,167.82,62.72]
[1747434220468,62.38,167.89,167.82,62.72]
[1747434220767,62.36,167.91,167.82,62.72]
[1747434220968,3.9265,167.97,167.82,62.72]
[1747434221162,5.9532,167.93,167.82,62.72]
[1747434221468,5.9532,167.93,167.89,5.9542]
[1747434221664,62.36,167.95,167.86,62.72]
[1747434221967,62.36,167.97,167.86,62.72]
[1747434222276,62.72,168.0,167.87,5.7229]
[1747434222573,62.38,167.98,167.88,62.38]
[1747434222968,62.38,167.98,167.94,5.9523]
[1747434223169,62.38,167.98,167.92,62.72]
[1747434223580,62.38,167.98,167.94,5.9523]
[1747434223876,62.38,167.98,167.92,62.72]
[1747434224175,62.72,168.0,167.92,62.72]
[1747434224375,62.42,167.99,167.92,62.72]
[1747434224571,62.72,168.0,167.92,62.72]
[1747434224778,138.09646543,168.05,167.92,62.72]
[1747434224779,138.09646543,168.05,167.92,125.18]
[1747434224983,62.72,168.04,167.92,125.18]
[1747434225273,136.91186543,168.05,167.94,10.21415429]
[1747434225572,136.91186543,168.05,167.95,5.6277]
[1747434225776,136.91186543,168.05,168.02,5.9497]
[1747434226376,136.91186543,168.05,168.03,5.9493]
[1747434226576,136.91186543,168.05,168.0,62.9]
[1747434226784,66.7173,168.12,168.0,125.8]
[1747434226972,64.7512,168.12,168.07,5.9478]
[1747434227167,64.7512,168.12,168.05,62.9]
[1747434227376,63.02,168.13,168.08,5.9473]
[1747434227678,63.0,168.13,168.08,5.9473]
[1747434227981,63.0,168.13,168.05,62.9]
[1747434228778,65.0108,168.13,168.05,62.9]
[1747434229476,5.9462,168.12,168.05,62.9]
[1747434229677,65.0108,168.13,168.05,62.9]
[1747434230473,5.9462,168.12,168.05,62.9]
[1747434231078,5.9462,168.12,168.08,5.9475]
[1747434231681,70.9567,168.13,168.09,5.9472]
[1747434231981,65.0108,168.13,168.05,62.9]
[1747434232275,5.9462,168.12,168.05,62.9]
[1747434232885,5.9462,168.12,168.09,5.9472]
[1747434233077,65.0108,168.13,168.09,5.9472]
[1747434233386,62.9,168.12,168.09,5.947]
[1747434233775,62.9,168.12,168.05,62.9]
[1747434234476,62.9,168.12,168.09,5.947]
[1747434234675,62.9,168.12,168.05,62.9]
[1747434235876,2.0108,168.13,168.05,62.9]
[1747434236077,63.14,168.12,168.05,62.9]
[1747434236582,63.14,168.12,168.08,5.9474]
[1747434237683,63.14,168.12,168.07,5.9479]
[1747434238284,63.14,168.12,168.05,62.9]
[1747434238983,65.9641,168.17,168.05,126.6]
[1747434239481,69.645,168.16,168.11,5.9463]
[1747434239781,69.645,168.16,168.05,126.6]
[1747434240083,69.645,168.16,168.1,5.9467]
[1747434240578,65.9641,168.17,168.05,126.6]
[1747434240785,73.89415429,168.16,168.04,62.84]
[1747434241085,5.9464,168.12,168.04,62.84]
[1747434241288,63.7,168.11,168.04,62.84]
[1747434241680,69.6466,168.11,168.04,62.84]
[1747434241882,63.7,168.11,168.04,62.84]
[1747434242380,69.6466,168.11,168.04,62.84]
[1747434242582,63.7,168.11,168.07,5.9476]
[1747434242889,63.7,168.11,168.04,62.84]
[1747434243086,63.7,168.11,168.09,5.9469]
[1747434243288,63.7,168.11,168.04,62.84]
[1747434243678,63.7,168.11,168.01,62.84]
[1747434243887,3.9564,168.1,168.01,62.84]
[1747434244086,5.948,168.07,168.04,5.949]
[1747434244291,63.68,168.06,168.04,5.949]
[1747434244688,69.6283,168.06,168.03,5.9493]
[1747434244890,69.6283,168.06,167.98,62.84]
[1747434245076,63.68,168.06,167.98,62.84]
[1747434245482,69.6286,168.06,167.98,62.84]
[1747434245989,5.9488,168.05,168.02,5.9495]
[1747434246192,63.68,168.06,167.98,62.84]
[1747434246489,69.6287,168.06,168.02,5.9495]
[1747434246789,63.68,168.06,168.02,5.9495]
[1747434246991,5.9489,168.05,168.02,5.9495]
[1747434247188,63.68,168.06,168.02,5.9495]
[1747434247384,62.84,168.09,167.98,62.84]
[1747434247583,63.52,168.07,167.98,62.84]
[1747434247983,63.52,168.07,168.05,5.9485]
[1747434248288,62.84,168.09,168.05,5.9485]
[1747434248489,63.52,168.08,168.07,5.9479]
[1747434248877,63.52,168.08,168.02,62.84]
[1747434249083,63.52,168.08,168.06,5.9482]
[1747434249284,63.52,168.08,168.02,62.84]
[1747434249986,63.52,168.08,168.06,5.9481]
[1747434250290,63.52,168.08,168.02,62.84]
[1747434250791,63.52,168.08,168.07,5.948]
[1747434251187,63.52,168.08,168.06,5.9482]
[1747434251391,5.9468,168.11,168.06,5.9482]
[1747434251592,63.5,168.09,168.06,5.9482]
[1747434251893,63.5,168.09,168.05,5.9485]
[1747434252092,63.5,168.09,168.02,62.84]
[1747434252497,63.5,168.09,168.07,5.9477]
[1747434252989,62.84,168.12,168.02,62.84]
[1747434253189,63.54,168.12,168.03,3.9555]
[1747434253389,62.84,168.16,168.04,63.52]
[1747434253685,63.52,168.15,168.12,5.9459]
[1747434253893,63.52,168.15,168.08,62.84]
[1747434254091,63.52,168.15,168.09,62.84]
[1747434254989,63.5,168.15,168.09,62.84]
[1747434255394,5.9445,168.17,168.12,5.9459]
[1747434255594,63.48,168.16,168.12,5.9459]
[1747434255797,63.48,168.16,168.09,62.84]
[1747434255991,63.48,168.16,168.1,5.9467]
[1747434256190,63.48,168.16,168.09,62.84]
[1747434256395,69.4249,168.16,168.09,62.84]
[1747434256592,1.9963,168.18,168.09,62.84]
[1747434256791,63.56,168.17,168.09,62.84]
[1747434256994,7.9405,168.18,168.09,62.84]
[1747434257194,63.56,168.17,168.13,5.9456]
[1747434257500,69.5044,168.17,168.13,5.9456]
[1747434257898,5.9444,168.17,168.13,5.9456]
[1747434258198,63.52,168.16,168.14,5.9455]
[1747434258398,63.52,168.16,168.09,62.84]
[1747434259200,63.52,168.16,168.15,5.9451]
[1747434259494,63.52,168.16,168.09,62.84]
[1747434259897,63.52,168.16,168.13,5.9456]
[1747434260198,63.52,168.16,168.09,62.84]
[1747434260391,63.52,168.16,168.13,5.9456]
[1747434260900,63.52,168.16,168.11,5.9465]
[1747434261197,63.52,168.16,168.09,62.84]
[1747434261399,69.4649,168.16,168.11,5.9463]
[1747434261700,69.4649,168.16,168.09,62.84]
[1747434262498,5.9452,168.15,168.12,5.9461]
[1747434262899,63.52,168.16,168.12,5.9461]
[1747434263198,69.4649,168.16,168.13,5.9458]
[1747434263498,63.52,168.16,168.09,62.84]
[1747434264896,69.4649,168.16,168.11,5.9463]
[1747434265394,63.52,168.16,168.11,5.9463]
[1747434265592,5.9451,168.15,168.11,5.9463]
[1747434266199,5.9451,168.15,168.12,5.9462]
[1747434266602,99.32,168.14,167.96,1.03532912]
[1747434266901,10.19550731,168.05,167.95,1.8961]
[1747434267202,10.19550731,168.05,167.96,5.9516]
[1747434267203,126.66,168.04,167.96,5.9516]
[1747434267901,5.9508,167.99,167.96,5.9516]
[1747434268202,63.1,167.98,167.96,5.9516]
[1747434268599,63.1,167.98,167.95,7.8483]
[1747434269001,63.1,167.98,167.95,1.8961]
[1747434269601,63.1,167.98,167.95,7.8482]
[1747434269797,63.1,167.98,167.95,1.8961]
[1747434270403,63.1,167.98,167.96,5.9519]
[1747434270605,68.9703,168.01,167.96,5.9519]
[1747434271204,5.9503,168.01,167.96,5.9519]
[1747434271394,68.9303,168.01,167.96,5.9519]
[1747434272405,63.56,168.02,167.95,1.8961]
[1747434272597,126.54,168.02,167.95,1.8961]
[1747434272894,62.98,168.02,167.96,1.9361]
[1747434274000,5.9493,168.04,167.99,5.9507]
[1747434274200,62.94,168.03,167.99,5.9507]
[1747434274602,62.9,168.03,167.99,5.9507]
[1747434274806,68.8494,168.03,167.98,5.9511]
[1747434275105,62.9,168.03,167.96,1.9361]
[1747434275310,5.9501,168.01,167.96,1.9361]
[1747434275510,5.9501,168.01,167.97,5.9514]
[1747434275708,62.9,168.03,167.97,5.9514]
[1747434275911,5.95,168.02,167.97,5.9514]
[1747434276316,5.9502,168.01,167.97,5.9514]
[1747434276511,5.9502,168.01,167.96,7.8878]
[1747434276710,68.8102,168.01,167.96,1.9361]
[1747434277306,62.86,168.01,167.96,1.9361]
[1747434278012,62.86,168.01,167.98,5.9509]
[1747434278313,62.86,168.01,167.96,1.9361]
[1747434278910,62.86,168.01,167.98,5.951]
[1747434279614,62.86,168.01,167.96,1.9361]
[1747434279807,62.86,168.01,167.95,1.8961]
[1747434280014,63.58,168.0,167.94,2.0411]
[1747434280210,63.58,168.0,167.94,7.9935]
[1747434280409,63.58,168.0,167.94,2.0411]
[1747434280913,5.9511,167.99,167.94,7.9936]
[1747434281215,63.58,168.0,167.94,2.0411]
[1747434282716,63.58,168.0,167.89,63.58]
[1747434283017,5.9521,167.96,167.92,5.9533]
[1747434283314,62.76,167.95,167.92,5.9533]
[1747434286112,68.7122,167.95,167.92,5.9533]
[1747434286416,62.76,167.95,167.88,3.8629]
[1747434287614,5.9532,167.93,167.9,5.954]
[1747434287814,62.76,167.95,167.88,3.8629]
[1747434288416,62.76,167.95,167.85,1.9975]
[1747434289018,5.9539,167.91,167.85,1.9975]
[1747434289226,62.72,167.91,167.85,1.9975]
[1747434289720,68.6738,167.91,167.85,1.9975]
[1747434289922,62.72,167.91,167.85,1.9975]
[1747434290421,68.6736,167.91,167.87,5.9548]
[1747434290917,62.72,167.91,167.87,5.9548]
[1747434291616,62.72,167.91,167.85,1.9975]
[1747434292321,62.72,167.91,167.83,580.4202]
[1747434292525,62.72,167.91,167.83,66.5202]
[1747434293028,5.9549,167.88,167.84,5.9559]
[1747434293327,62.72,167.91,167.83,3.7602]
[1747434293512,62.72,167.91,167.8,62.76]
[1747434294223,5.9549,167.88,167.8,62.76]
[1747434294523,62.8,167.87,167.8,62.76]
[1747434294723,62.8,167.87,167.84,5.9558]
[1747434294923,62.8,167.87,167.8,62.76]
[1747434295326,62.8,167.87,167.86,5.9554]
[1747434295527,62.72,167.9,167.8,62.76]
[1747434295824,62.72,167.9,167.87,5.955]
[1747434296324,62.72,167.9,167.8,62.76]
[1747434297027,62.72,167.9,167.87,5.9548]
[1747434297228,62.72,167.9,167.8,62.76]
[1747434297528,62.72,167.9,167.86,5.9552]
[1747434298020,62.72,167.9,167.8,62.76]
[1747434298226,62.72,167.9,167.87,5.9548]
[1747434300022,62.72,167.9,167.86,5.9553]
[1747434300330,62.72,167.9,167.8,62.76]
[1747434300530,5.9553,167.87,167.8,62.76]
[1747434300720,62.58,167.86,167.79,1.9633]
[1747434301034,62.58,167.86,167.83,5.9563]
[1747434302440,68.5355,167.86,167.83,5.9563]
[1747434303534,62.58,167.86,167.84,5.9561]
[1747434303729,62.78,167.87,167.79,1.9633]
[1747434303934,62.56,167.86,167.79,1.9633]
[1747434304132,62.56,167.86,167.85,5.9557]
[1747434305830,62.56,167.86,167.79,64.5233]
[1747434306132,62.56,167.86,167.79,1.9633]
[1747434308238,62.56,167.86,167.85,5.9557]
[1747434308436,62.56,167.86,167.79,1.9633]
[1747434308640,62.38,167.87,167.79,1.9633]
[1747434308839,62.38,167.87,167.85,5.9555]
[1747434309239,62.38,167.87,167.79,1.9633]
[1747434310535,62.38,167.87,167.86,5.9554]
[1747434311043,62.38,167.87,167.79,1.9633]
[1747434311244,62.38,167.87,167.85,5.9556]
[1747434311843,62.38,167.87,167.86,5.9554]
[1747434313144,62.38,167.87,167.85,5.9556]
[1747434313445,62.38,167.87,167.81,62.8]
[1747434313844,62.38,167.87,167.86,5.9554]
[1747434317347,62.38,167.87,167.67,514.66]
[1747434317536,6.38801134,167.86,167.73,6.38801134]
[1747434317739,6.38801134,167.86,167.74,64.016]
[1747434317939,12.34371134,167.86,167.81,5.9569]
[1747434318242,6.38801134,167.86,167.81,5.9569]
[1747434318548,12.34361134,167.86,167.81,5.9569]
[1747434318946,62.38,167.87,167.75,62.18]
[1747434319345,6.38801134,167.93,167.86,5.9554]
[1747434319640,124.3,167.92,167.86,5.9554]
[1747434320045,124.3,167.92,167.79,5.9576]
[1747434320239,6.38801134,167.86,167.72,62.14]
[1747434320443,124.28,167.85,167.72,62.14]
[1747434321848,5.9578,167.8,167.76,5.9589]
[1747434322053,62.14,167.81,167.72,62.14]
[1747434322243,5.9585,167.78,167.74,5.9595]
[1747434322647,5.9585,167.78,167.72,62.14]
[1747434324046,5.9585,167.78,167.74,5.9594]
[1747434324551,5.958,167.79,167.72,62.14]
[1747434325052,5.958,167.79,167.74,5.9596]
[1747434325652,5.9583,167.78,167.73,5.9599]
[1747434325853,62.14,167.8,167.72,62.14]
[1747434326852,5.9585,167.78,167.74,5.9594]
[1747434328560,5.9587,167.77,167.73,5.9599]
[1747434329257,5.9584,167.78,167.74,5.9595]
[1747434329457,5.9584,167.78,167.72,62.14]
[1747434330054,62.14,167.8,167.72,62.14]
[1747434330358,68.0978,167.8,167.76,5.9588]
[1747434331557,62.14,167.8,167.77,5.9585]
[1747434331756,62.16,167.8,167.77,5.9585]
[1747434332256,62.14,167.81,167.72,62.14]
[1747434332453,5.9569,167.82,167.73,62.16]
[1747434332654,62.16,167.88,167.75,6.38801134]
[1747434332856,68.1148,167.88,167.84,5.9561]
[1747434333461,5.9551,167.87,167.8,62.18]
[1747434333958,5.9551,167.87,167.84,5.9561]
[1747434334662,5.9551,167.87,167.83,5.9563]
[1747434335056,62.16,167.88,167.8,62.18]
[1747434335261,62.16,167.88,167.82,5.9565]
[1747434335755,5.9556,167.86,167.8,62.18]
[1747434336263,5.9556,167.86,167.83,5.9563]
[1747434337558,68.54801134,167.88,167.79,4.0019]
[1747434337755,68.54801134,167.88,167.72,6.38801134]
[1747434338060,6.38801134,167.85,167.78,5.9582]
[1747434338263,124.34,167.84,167.75,1.9571]
[1747434339457,6.38801134,167.82,167.73,62.18]
[1747434340167,5.9582,167.78,167.73,62.18]
[1747434340656,62.16,167.79,167.73,62.18]
[1747434342359,62.16,167.79,167.76,5.9587]
[1747434342568,6.38801134,167.85,167.76,5.9587]
[1747434342765,62.18,167.83,167.76,5.9587]
[1747434343160,5.9574,167.81,167.77,5.9583]
[1747434343365,62.18,167.83,167.73,62.18]
[1747434343559,62.16,167.82,167.73,62.18]
[1747434343754,68.1169,167.82,167.78,5.958]
[1747434346060,68.1366,167.83,167.73,62.18]
[1747434346266,124.34,167.83,167.73,62.18]
[1747434346469,62.16,167.83,167.74,62.16]
[1747434347168,5.957,167.82,167.78,5.9579]
[1747434348170,5.9572,167.81,167.78,5.9579]
[1747434348369,5.9572,167.81,167.74,62.16]
[1747434348570,5.9572,167.81,167.73,62.18]
[1747434349570,5.957,167.82,167.78,5.958]
[1747434349966,62.16,167.83,167.78,5.958]
[1747434350267,62.16,167.83,167.79,5.9579]
[1747434350474,62.16,167.83,167.73,62.18]
[1747434351268,5.957,167.82,167.73,62.18]
[1747434352469,62.16,167.83,167.73,62.18]
[1747434353074,5.9577,167.8,167.77,5.9585]
[1747434353374,62.14,167.81,167.73,62.18]
[1747434353576,5.9581,167.79,167.75,5.9593]
[1747434353763,5.9581,167.79,167.73,62.18]
[1747434354274,5.9581,167.79,167.75,5.9591]
[1747434354475,62.16,167.8,167.73,62.18]
[1747434354875,62.16,167.8,167.74,5.9594]
[1747434355064,5.9585,167.78,167.73,62.18]
[1747434355679,5.9585,167.78,167.75,5.9591]
[1747434356376,5.958,167.79,167.76,5.9589]
[1747434356576,1.1903,167.87,167.73,62.18]
[1747434356769,130.70801134,167.86,167.8,5.9575]
[1747434356966,5.9567,167.83,167.8,5.9575]
[1747434357169,62.16,167.82,167.8,5.9575]
[1747434357380,62.16,167.82,167.73,62.18]
[1747434357381,62.16,167.82,167.79,5.9578]
[1747434357680,68.1171,167.82,167.79,5.9578]
[1747434357871,130.2771,167.82,167.79,5.9578]
[1747434358181,5.9578,167.8,167.73,62.18]
[1747434358479,124.32,167.82,167.73,62.18]
[1747434359078,5.9575,167.81,167.78,5.958]
[1747434360180,5.9575,167.81,167.73,62.18]
[1747434360367,124.32,167.82,167.73,74.1]
[1747434360774,62.16,167.82,167.8,5.9573]
[1747434360971,124.32,167.82,167.73,74.1]
[1747434361171,62.16,167.85,167.74,74.0793]
[1747434361371,62.16,167.83,167.74,74.0793]
[1747434361873,62.16,167.83,167.81,5.9569]
[1747434362673,62.16,167.83,167.74,74.0793]
[1747434362875,68.1167,167.83,167.74,74.0793]
[1747434363180,68.1167,167.83,167.8,5.9573]
[1747434363380,62.16,167.83,167.8,5.9573]
[1747434363583,62.16,167.83,167.74,74.0793]
[1747434363774,5.9563,167.84,167.74,74.0793]
[1747434363980,68.0963,167.84,167.74,74.0793]
[1747434364884,5.9565,167.83,167.8,5.9573]
[1747434365185,5.9565,167.83,167.74,74.0793]
[1747434365384,62.14,167.84,167.8,5.9574]
[1747434365685,68.0964,167.84,167.8,5.9574]
[1747434365887,62.14,167.84,167.74,74.0793]
[1747434366587,62.14,167.84,167.81,5.957]
[1747434367079,62.16,167.85,167.78,3.8042]
[1747434367286,62.14,167.84,167.82,5.9566]
[1747434367486,62.14,167.84,167.78,3.8042]
[1747434368481,5.9571,167.82,167.78,9.7624]
[1747434368683,62.14,167.84,167.78,9.7624]
[1747434369091,5.9571,167.82,167.79,5.9578]
[1747434369991,5.9573,167.81,167.78,9.7623]
[1747434370203,62.14,167.84,167.78,5.9581]
[1747434370604,5.9574,167.81,167.78,5.9581]
[1747434370901,5.9574,167.81,167.79,5.9578]
[1747434371105,5.957,167.82,167.79,5.9578]
[1747434372405,5.9573,167.81,167.78,5.9581]
[1747434372599,62.14,167.84,167.74,62.14]
[1747434372992,5.9569,167.82,167.79,5.9576]
[1747434373407,5.9569,167.82,167.74,62.14]
[1747434373806,5.9566,167.83,167.8,5.9575]
[1747434374104,68.54801134,167.85,167.74,62.14]
[1747434374299,62.12,167.84,167.74,62.14]
[1747434374902,62.16,167.85,167.74,62.14]
[1747434375104,124.28,167.85,167.74,62.14]
[1747434375308,124.28,167.85,167.82,5.9566]
[1747434375808,130.2359,167.85,167.81,5.9571]
[1747434376010,68.1159,167.85,167.81,5.9571]
[1747434376306,130.2359,167.85,167.81,5.9571]
[1747434376810,5.9562,167.84,167.81,5.9571]
[1747434377007,124.28,167.85,167.8,5.9575]
[1747434377308,5.9567,167.83,167.8,5.9575]
[1747434377501,124.28,167.85,167.79,5.9577]
[1747434377906,5.957,167.82,167.8,5.9575]
[1747434378419,5.9566,167.83,167.77,1.861]
[1747434378613,5.9566,167.83,167.8,5.9572]
[1747434379714,5.9569,167.82,167.8,5.9572]
[1747434380010,124.28,167.85,167.81,5.9572]
[1747434380212,5.9563,167.84,167.81,5.9572]
[1747434380814,5.9565,167.83,167.81,5.9572]
[1747434381214,124.28,167.85,167.82,5.9568]
[1747434381515,5.9567,167.83,167.77,1.861]
[1747434382615,124.28,167.85,167.77,1.861]
[1747434382816,130.66801134,167.85,167.73,3.8663]
[1747434384017,1.1882,167.84,167.73,3.8663]
[1747434384416,5.9584,167.78,167.73,3.8663]
[1747434384619,68.0784,167.78,167.73,3.8663]
[1747434385117,68.0784,167.78,167.75,5.9591]
[1747434385913,62.12,167.78,167.74,5.9596]
[1747434386111,62.12,167.78,167.7,2.0116]
[1747434386617,5.33159974,167.75,167.72,5.9602]
[1747434386917,5.33159974,167.75,167.7,2.0116]
[1747434387419,5.33159974,167.75,167.72,5.9601]
[1747434389122,5.9605,167.72,167.7,5.961]
[1747434389620,62.1,167.74,167.66,62.12]
[1747434391419,5.9606,167.72,167.69,5.9614]
[1747434391924,5.9608,167.71,167.69,5.9614]
[1747434392721,5.9608,167.71,167.68,5.9616]
[1747434392922,62.1,167.7,167.65,2.0025]
[1747434393113,62.1,167.7,167.64,1.8565]
[1747434393315,62.1,167.7,167.65,5.9626]
[1747434393515,5.9621,167.68,167.65,5.9626]
[1747434393917,62.1,167.7,167.61,2.0076]
[1747434394118,62.12,167.69,167.61,2.0076]
[1747434394323,5.9628,167.66,167.61,2.0076]
[1747434394525,62.12,167.66,167.63,5.9634]
[1747434394724,62.12,167.66,167.61,2.0076]
[1747434394924,62.12,167.66,167.58,3.9638]
[1747434395524,5.9629,167.65,167.58,3.9638]
[1747434395730,5.9629,167.65,167.62,5.9636]
[1747434396031,68.0826,167.66,167.58,3.9638]
[1747434396222,68.0826,167.66,167.62,5.9636]
[1747434397221,68.0826,167.66,167.63,5.9635]
[1747434398030,5.963,167.65,167.62,5.9638]
[1747434399031,62.12,167.66,167.58,3.9638]
[1747434399236,6.38801134,167.7,167.58,3.9638]
[1747434399422,124.28,167.69,167.58,3.9638]
[1747434399728,5.9619,167.68,167.58,3.9638]
[1747434400528,5.9622,167.67,167.58,3.9638]
[1747434401128,5.9622,167.67,167.63,5.9633]
[1747434401326,5.9619,167.68,167.58,3.9638]
[1747434402228,5.9619,167.68,167.64,5.963]
[1747434403631,5.9619,167.68,167.58,3.9638]
[1747434403632,5.9622,167.67,167.63,5.9635]
[1747434404332,5.9625,167.66,167.63,5.9635]
[1747434404930,5.9625,167.66,167.58,3.9638]
[1747434404931,62.12,167.65,167.58,3.9638]
[1747434405129,62.12,167.64,167.58,3.9638]
[1747434405931,62.12,167.64,167.61,5.9642]